bitfinex-derivatives/quotes_ETHF0:USTF0_20250908
["timestamp","ask_amount","ask_price","bid_price","bid_amount"]
[1757326842997,0.2809,4328.5,4328.4,1.0031]
[1757326843896,0.1155,4328.7,4328.6,1.0031]
[1757326844292,0.3964,4328.7,4328.6,1.0031]
[1757326844603,0.8461,4328.7,4328.6,1.0031]
[1757326844801,1.1348,4328.7,4328.6,1.0031]
[1757326845000,0.1155,4328.7,4328.6,1.0031]
[1757326845497,0.4497,4329.4,4328.7,0.4528]
[1757326845698,1.57309743,4329.3,4329.2,0.7288]
[1757326849713,1.57309743,4329.3,4329.2,1.0031]
[1757326857919,1.57309743,4329.3,4328.5,0.1711]
[1757326858122,0.4497,4328.0,4327.9,0.4528]
[1757326858326,1.0193,4327.6,4327.5,1.1865]
[1757326858623,1.0193,4327.6,4327.5,1.0031]
[1757326859619,1.0193,4327.6,4327.5,1.1742]
[1757326860427,0.1508,4327.5,4327.4,0.00346821]
[1757326860724,1.1701,4327.5,4327.4,0.45626821]
[1757326863627,1.1348,4327.5,4327.4,0.73226821]
[1757326865422,1.1348,4327.5,4327.4,1.00656821]
[1757326868729,0.3964,4327.5,4327.4,1.00656821]
[1757326868929,0.1155,4327.5,4327.4,1.00656821]
[1757326869632,1.6573747,4329.4,4327.4,1.00656821]
[1757326869633,0.4458,4328.8,4327.6,0.4267]
[1757326869929,1.58864257,4328.7,4328.6,0.71]
[1757326870127,1.58864257,4328.7,4328.6,0.4267]
[1757326870329,1.58864257,4328.7,4328.1,0.4267]
[1757326870522,0.5888,4328.7,4328.6,1.0129]
[1757326870725,0.84999066,4328.7,4328.6,1.0129]
[1757326871026,1.0346,4329.4,4329.3,0.2833]
[1757326871226,1.58849658,4329.4,4329.3,0.71]
[1757326871628,1.58849658,4329.4,4329.3,0.4267]
[1757326871829,1.58849658,4329.4,4328.5,0.1757]
[1757326872032,0.5888,4328.8,4328.7,1.0129]
[1757326874425,0.296,4328.8,4328.7,1.0129]
[1757326874627,1.0346,4329.8,4329.7,0.2833]
[1757326874829,0.84980681,4329.8,4329.7,1.0129]
[1757326876232,1.58840681,4329.8,4329.7,1.0129]
[1757326877530,1.58811703,4329.8,4329.7,1.0129]
[1757326878332,1.58811703,4329.8,4329.5,0.0201]
[1757326878534,1.0346,4329.6,4329.5,0.0201]
[1757326878727,1.58811703,4329.6,4329.5,0.0201]
[1757326878929,0.5888,4329.1,4329.0,0.2833]
[1757326879228,0.296,4329.1,4329.0,1.1886]
[1757326879626,1.0346,4329.9,4329.8,0.2833]
[1757326879829,1.58800463,4329.9,4329.8,0.2833]
[1757326880026,1.58800463,4329.9,4329.5,0.1757]
[1757326880227,1.0346,4329.7,4329.6,0.71]
[1757326880431,1.58800463,4329.7,4329.6,0.71]
[1757326881140,0.55340463,4329.7,4329.6,1.0129]
[1757326881733,0.84940463,4329.7,4329.6,1.0129]
[1757326885236,1.58800463,4329.7,4329.4,0.0075]
[1757326885426,0.7396,4329.5,4329.4,0.0075]
[1757326885631,1.1854,4329.5,4329.4,0.0075]
[1757326886235,1.1854,4329.5,4329.0,0.1757]
[1757326886236,1.73839768,4329.5,4329.0,0.1757]
[1757326886437,1.1854,4329.5,4329.1,0.4267]
[1757326886931,1.1854,4329.5,4329.0,0.1757]
[1757326887139,1.1854,4329.5,4329.1,0.4267]
[1757326887338,0.5888,4329.2,4329.1,0.4267]
[1757326887535,1.0346,4329.2,4329.1,0.4267]
[1757326887732,1.0346,4329.2,4328.6,0.4267]
[1757326887933,0.1508,4329.5,4328.6,0.23101]
[1757326888129,0.4458,4329.2,4328.6,1.0129]
[1757326888335,0.7418,4329.2,4329.1,0.5862]
[1757326888536,0.7418,4329.2,4329.1,1.0129]
[1757326888840,0.296,4329.2,4329.1,1.0129]
[1757326890645,1.0346,4329.2,4329.1,1.0129]
[1757326891144,0.296,4329.2,4329.1,1.0129]
[1757326893538,0.296,4329.3,4329.2,1.0129]
[1757326894241,0.5888,4329.3,4329.2,1.0129]
[1757326894439,1.0346,4329.3,4329.2,1.0129]
[1757326897648,0.5888,4329.3,4329.2,1.0129]
[1757326898041,0.296,4329.3,4329.2,1.0129]
[1757326898345,0.296,4329.3,4329.0,0.1757]
[1757326898346,0.7042,4329.6,4329.5,1.1427]
[1757326898544,1.25873344,4329.6,4329.5,1.1427]
[1757326898849,1.55193344,4329.6,4329.5,0.9799]
[1757326899046,1.55193344,4329.6,4329.5,0.7137]
[1757326899744,1.55193344,4329.6,4329.0,0.1757]
[1757326899942,0.9974,4329.2,4329.1,0.7137]
[1757326900546,1.55277589,4329.2,4329.1,0.9799]
[1757326902947,1.78376589,4329.2,4328.6,0.4304]
[1757326903142,0.9974,4328.7,4328.0,0.1757]
[1757326903450,1.55277589,4328.6,4328.5,0.9799]
[1757326903652,1.55277589,4328.6,4328.5,1.1427]
[1757326904047,1.55277589,4328.6,4328.5,0.7137]
[1757326904354,1.55277589,4328.6,4328.5,0.4304]
[1757326904946,1.55277589,4328.6,4328.5,0.7137]
[1757326905753,1.55277589,4328.6,4328.5,1.1427]
[1757326905944,0.82187589,4328.6,4328.5,1.1427]
[1757326906144,0.55537589,4328.6,4328.5,1.1427]
[1757326906541,0.2665,4329.3,4329.2,0.5495]
[1757326906748,0.2665,4329.3,4329.2,0.9799]
[1757326906952,0.82149062,4329.3,4329.2,0.9799]
[1757326907252,1.55239062,4329.3,4329.2,0.9799]
[1757326907551,0.82149062,4329.3,4329.2,0.9799]
[1757326908345,0.55499062,4329.3,4329.2,0.9799]
[1757326909654,0.55499062,4329.3,4329.2,0.7499]
[1757326914250,0.55498398,4329.3,4329.2,0.3195]
[1757326914451,0.55498398,4329.3,4329.2,0.7499]
[1757326915149,1.25918398,4329.3,4329.2,0.7499]
[1757326915349,0.7042,4329.3,4329.2,0.7499]
[1757326915655,0.2665,4329.3,4329.2,0.7499]
[1757326916553,0.4377,4330.2,4329.3,0.4304]
[1757326916850,0.7042,4330.3,4330.2,0.9799]
[1757326917054,0.4377,4330.9,4330.2,0.9799]
[1757326917257,0.7042,4330.8,4330.7,0.9799]
[1757326917553,1.25857634,4330.8,4330.7,0.9799]
[1757326917756,1.55177634,4330.8,4330.7,0.9799]
[1757326918659,1.25857634,4330.8,4330.7,0.9799]
[1757326918857,1.55177634,4330.8,4330.7,0.9799]
[1757326920852,1.55109035,4330.8,4330.7,0.9799]
[1757326921858,1.11339035,4330.8,4330.7,0.9799]
[1757326922361,0.9974,4330.8,4330.7,0.9799]
[1757326922556,0.7042,4330.8,4330.7,0.9799]
[1757326922952,0.2665,4330.8,4330.7,0.9799]
[1757326923256,0.7042,4330.8,4330.7,0.9799]
[1757326923450,0.4377,4331.3,4330.7,0.5495]
[1757326923657,1.1127476,4331.2,4331.1,0.9799]
[1757326924358,1.5504476,4331.2,4331.1,0.9799]
[1757326925159,1.5504476,4331.2,4331.1,0.2833]
[1757326926157,1.5504476,4331.2,4331.1,0.7056]
[1757326927055,1.5504476,4331.2,4331.1,0.2833]
[1757326927561,0.9974,4331.2,4331.1,0.2833]
[1757326928657,0.9974,4331.2,4330.5,0.1628]
[1757326928857,0.9974,4331.2,4330.6,0.4223]
[1757326931057,0.9974,4331.2,4330.8,0.4223]
[1757326931263,0.9974,4331.2,4330.7,0.0148]
[1757326931460,0.9974,4331.2,4330.8,0.4223]
[1757326931958,0.5685,4330.8,4330.7,0.0148]
[1757326932161,0.9811,4330.8,4329.3,0.076]
[1757326932359,0.9811,4329.7,4329.6,0.98]
[1757326933665,0.4126,4330.4,4329.6,0.5577]
[1757326933961,0.4126,4330.7,4330.2,0.5577]
[1757326934167,0.55248554,4330.6,4330.5,1.1533]
[1757326934364,0.1613,4331.0,4330.6,0.4223]
[1757326934665,0.9811,4330.7,4330.6,0.98]
[1757326935276,0.4126,4331.1,4330.6,0.98]
[1757326935459,0.4126,4331.1,4330.9,0.98]
[1757326935460,0.82915429,4331.0,4330.9,0.98]
[1757326935767,0.6889,4331.0,4330.9,0.98]
[1757326936266,0.9811,4331.0,4330.9,0.98]
[1757326936962,1.1424,4331.0,4330.9,0.98]
[1757326937167,1.1424,4331.0,4330.9,0.2841]
[1757326937663,0.9811,4331.0,4330.9,0.98]
[1757326939263,1.69568298,4331.0,4330.5,0.1733]
[1757326939459,1.69568298,4331.0,4330.6,0.4223]
[1757326939460,1.1424,4331.0,4330.6,0.4223]
[1757326939660,1.1424,4331.0,4330.1,0.23092]
[1757326939855,1.1424,4331.0,4330.2,0.4223]
[1757326940065,0.9811,4330.3,4329.5,0.1628]
[1757326940366,0.5685,4329.8,4329.7,0.98]
[1757326940669,0.9811,4329.8,4329.7,0.98]
[1757326941567,0.2763,4329.8,4329.7,0.98]
[1757326941762,0.6889,4330.4,4330.3,0.5577]
[1757326942066,0.83009329,4330.4,4330.3,0.98]
[1757326942267,0.4126,4330.8,4330.3,0.98]
[1757326942571,1.1224514,4330.7,4330.6,0.98]
[1757326942873,0.2763,4330.7,4330.6,0.5577]
[1757326943062,0.6889,4330.7,4330.6,0.5577]
[1757326943268,0.4126,4331.4,4330.6,0.5577]
[1757326943568,0.9811,4330.8,4330.7,0.98]
[1757326944571,0.4126,4331.4,4330.8,0.4223]
[1757326944773,1.53533409,4331.3,4331.2,0.2841]
[1757326945071,1.53533409,4331.3,4331.0,0.4223]
[1757326945272,0.9811,4331.1,4331.0,0.7064]
[1757326945472,1.53533409,4331.1,4331.0,0.98]
[1757326949572,1.53533409,4331.1,4331.0,0.7064]
[1757326951278,1.53533409,4331.1,4331.0,0.2841]
[1757326951576,1.53533409,4331.1,4331.0,0.7064]
[1757326952172,0.55423409,4331.1,4331.0,1.1533]
[1757326952474,0.4126,4331.8,4331.4,0.4223]
[1757326952677,0.6889,4331.5,4331.4,0.98]
[1757326952877,1.24356506,4331.5,4331.4,0.98]
[1757326953670,0.55466506,4331.5,4331.4,0.98]
[1757326953878,0.6889,4331.8,4331.7,0.98]
[1757326954180,0.83085416,4331.8,4331.7,0.98]
[1757326954371,0.55455416,4331.8,4331.7,0.98]
[1757326954865,0.55455416,4331.8,4331.7,1.27015684]
[1757326955065,0.55455416,4331.8,4331.7,0.98]
[1757326955269,0.1613,4332.5,4331.5,0.1733]
[1757326955270,0.4131,4332.4,4331.8,0.4223]
[1757326955472,1.51498549,4332.3,4332.2,0.6836]
[1757326955873,1.51498549,4332.3,4331.6,0.3996]
[1757326956075,0.9608,4331.7,4331.6,0.284]
[1757326956578,0.9608,4331.7,4331.6,0.6836]
[1757326957472,0.9608,4331.7,4331.6,0.9603]
[1757326958067,0.9608,4331.7,4331.6,0.6836]
[1757326958272,0.9608,4331.7,4331.6,0.284]
[1757326958678,0.9608,4331.7,4331.6,0.6836]
[1757326959275,0.9608,4331.7,4331.6,0.9603]
[1757326960870,0.4131,4332.1,4331.6,0.9603]
[1757326961075,0.9608,4331.7,4331.6,0.9603]
[1757326963182,1.51453958,4331.7,4331.6,0.9603]
[1757326963379,1.51454961,4331.7,4331.6,0.9603]
[1757326966895,0.1613,4332.5,4331.6,0.85059683]
[1757326967088,0.9608,4332.3,4332.2,0.6836]
[1757326967286,1.5146336,4332.3,4332.2,0.6836]
[1757326967487,1.7454636,4332.3,4332.2,0.6836]
[1757326967685,1.5146336,4332.3,4332.2,0.284]
[1757326968501,1.5146336,4332.3,4332.0,0.3996]
[1757326968794,0.9608,4332.1,4332.0,0.6836]
[1757326968995,1.5146336,4332.1,4332.0,0.6836]
[1757326969190,0.158,4332.0,4331.0,0.1733]
[1757326969391,0.4131,4331.8,4331.2,0.3996]
[1757326969591,0.6873,4331.4,4331.3,1.25018054]
[1757326970893,0.158,4332.0,4331.3,1.25018054]
[1757326970894,0.6873,4331.6,4331.5,0.7302]
[1757326971098,0.6873,4331.6,4331.5,1.41968054]
[1757326971395,0.9608,4331.6,4331.5,1.41968054]
[1757326972297,1.5152756,4331.6,4331.5,1.25018054]
[1757326973595,1.51534217,4331.6,4331.5,1.25018054]
[1757326973794,1.51534217,4331.6,4331.5,1.41968054]
[1757326974098,0.2742,4331.6,4331.5,1.41968054]
[1757326974601,0.158,4332.0,4331.5,1.02008054]
[1757326974793,0.5545693,4331.9,4331.8,0.9603]
[1757326974993,0.5545693,4331.9,4331.8,1.25018054]
[1757326975298,0.8287693,4331.9,4331.8,1.25018054]
[1757326975502,1.2418693,4331.9,4331.8,1.25018054]
[1757326976201,0.4131,4332.3,4331.8,1.25018054]
[1757326976398,1.24170259,4332.2,4332.1,0.9603]
[1757326976590,1.51520259,4332.2,4332.1,0.9603]
[1757326977494,0.9608,4332.2,4332.1,0.9603]
[1757326980097,0.2742,4332.3,4332.2,0.9603]
[1757326980301,0.6873,4332.3,4332.2,0.9603]
[1757326980803,0.9608,4332.3,4332.2,0.9603]
[1757326983204,1.51545862,4332.3,4332.2,0.9603]
[1757326984205,0.9608,4332.3,4332.2,0.9603]
[1757326984802,0.9608,4332.6,4332.5,1.1298]
[1757326985001,0.9608,4332.6,4332.5,0.9603]
[1757326985002,1.51534466,4332.6,4332.5,0.9603]
[1757326986113,1.51534466,4332.6,4332.5,1.1288]
[1757326986311,0.55454466,4332.6,4332.5,1.1288]
[1757326986507,4.7088,4333.0,4332.5,1.41157374]
[1757326986706,0.55437132,4332.9,4332.7,0.3801]
[1757326986907,1.09947132,4332.8,4332.7,0.9201]
[1757326987411,5.1145,4333.0,4332.7,0.54]
[1757326987611,0.8281237,4332.9,4332.8,0.9201]
[1757326988011,1.2338237,4332.9,4332.8,0.9201]
[1757326988209,1.5029237,4332.9,4332.8,0.9201]
[1757326988407,1.5029237,4332.9,4332.8,0.2785]
[1757326989007,1.5029237,4332.9,4332.8,0.6586]
[1757326989416,1.5029237,4332.9,4332.8,0.9201]
[1757326991312,0.9508,4332.9,4332.8,0.9201]
[1757326991503,0.9508,4332.9,4332.8,1.20259152]
[1757326993611,1.50243483,4332.9,4332.1,0.3801]
[1757326993916,0.9508,4332.3,4332.2,1.20260487]
[1757326994116,0.276,4332.4,4332.3,0.3801]
[1757326994318,0.276,4332.4,4332.3,0.9201]
[1757326994616,0.9508,4332.4,4332.3,0.9201]
[1757326996212,0.9508,4332.4,4332.3,1.20266571]
[1757326997916,0.9508,4332.4,4331.5,0.1695]
[1757326998219,0.276,4331.8,4331.7,0.9201]
[1757326998413,0.6817,4331.8,4331.7,1.20281276]
[1757326998719,0.276,4331.8,4331.7,1.20281276]
[1757326999219,0.4057,4332.1,4331.8,0.3801]
[1757326999514,0.9157,4332.6,4332.5,0.54]
[1757326999714,1.46774455,4332.6,4332.5,0.7085]
[1757326999908,1.50284455,4332.6,4332.5,1.0886]
[1757327000316,0.82804455,4332.6,4332.5,1.37645468]
[1757327001119,1.23374455,4332.6,4332.5,1.37642904]
[1757327002618,1.50284455,4332.6,4332.5,1.37642904]
[1757327002819,5.2795,4333.0,4332.5,1.37642904]
[1757327003019,1.2339228,4332.9,4332.8,0.54]
[1757327003320,1.2339228,4332.9,4332.8,1.20792904]
[1757327004814,1.5030228,4332.9,4332.8,1.20792904]
[1757327007316,1.5030228,4332.9,4332.8,0.56632904]
[1757327007522,1.5030228,4332.9,4332.8,0.94642904]
[1757327007721,1.5030228,4332.9,4332.8,1.20792904]
[1757327010422,0.8282228,4332.9,4332.8,1.20792904]
[1757327010720,0.5522228,4332.9,4332.8,1.20792904]
[1757327011023,4.7088,4333.0,4332.9,0.9201]
[1757327011223,5.26143722,4333.0,4332.9,1.20792904]
[1757327011423,4.7088,4333.0,4332.9,1.20792904]
[1757327011618,5.26133552,4333.0,4332.9,1.20792904]
[1757327011817,5.53733552,4333.0,4332.9,1.20792904]
[1757327012425,5.6596,4333.0,4332.9,1.20792904]
[1757327012827,6.37709027,4333.0,4332.9,0.28782904]
[1757327013421,5.53729027,4333.0,4332.9,1.20792904]
[1757327013618,5.26129027,4333.0,4332.9,1.20792904]
[1757327013817,6.21209027,4333.0,4332.9,1.20792904]
[1757327015824,5.80639027,4333.0,4332.9,1.20792904]
[1757327016020,6.20669027,4333.0,4332.9,1.20792904]
[1757327017625,5.80713633,4333.0,4332.9,1.20792904]
[1757327017827,6.35967984,4333.0,4332.9,0.28782904]
[1757327018317,6.59046984,4333.0,4332.9,0.28782904]
[1757327018726,6.35967984,4333.0,4332.9,0.28782904]
[1757327019123,6.35967984,4333.0,4332.9,0.28733899]
[1757327019726,6.59367984,4333.0,4332.9,0.28733899]
[1757327020933,6.59367984,4333.0,4332.9,0.55353899]
[1757327021128,6.59367984,4333.0,4332.9,0.93993899]
[1757327021627,6.59367984,4333.0,4332.9,0.55353899]
[1757327022726,6.59367984,4333.0,4332.9,0.93993899]
[1757327025738,5.25473633,4333.0,4332.9,1.19963899]
[1757327025934,4.98563633,4333.0,4332.9,1.19963899]
[1757327026330,5.38593633,4333.0,4332.9,0.9123]
[1757327027331,4.70963633,4333.0,4332.9,1.19962522]
[1757327028731,5.36813633,4333.0,4332.9,1.19962522]
[1757327029933,4.96783633,4333.0,4332.9,1.19962522]
[1757327030640,5.62803633,4333.0,4332.9,1.19962522]
[1757327032842,4.96783633,4333.0,4332.9,1.19962522]
[1757327033244,5.36813633,4333.0,4332.9,1.19962522]
[1757327033643,4.70963633,4333.0,4332.9,1.19962522]
[1757327034544,4.96783633,4333.0,4332.9,1.19962522]
[1757327036242,5.36813633,4333.0,4332.9,1.19962522]
[1757327036945,4.70963633,4333.0,4332.9,5.19962522]
[1757327037239,0.1521,4335.5,4332.9,5.19962522]
[1757327037240,0.7511,4333.8,4333.7,0.6526]
[1757327037544,0.7511,4333.8,4333.7,0.3864]
[1757327037545,1.07069623,4333.8,4333.7,0.3864]
[1757327038945,1.07069623,4333.8,4333.0,0.1574]
[1757327039132,0.8924,4333.6,4333.5,0.2662]
[1757327039336,0.8924,4333.6,4333.5,0.93573547]
[1757327039536,0.8924,4333.6,4333.5,1.09313547]
[1757327040444,1.44495267,4333.6,4333.5,0.28313547]
[1757327041145,1.44495267,4333.6,4333.5,0.66953547]
[1757327042242,0.8924,4333.6,4333.5,0.66953547]
[1757327042848,0.5181,4333.6,4333.5,1.35283547]
[1757327043147,0.2582,4333.6,4333.5,1.35283547]
[1757327043342,0.5181,4333.6,4333.5,1.35283547]
[1757327046352,0.5181,4333.6,4333.5,1.0697]
[1757327046552,0.9223,4333.6,4333.5,1.0697]
[1757327047648,1.47467793,4333.6,4333.5,1.0697]
[1757327048148,1.47467793,4333.6,4333.5,0.3864]
[1757327048544,1.47467793,4333.6,4333.5,0.6385]
[1757327048745,1.47467793,4333.6,4333.5,0.8006]
[1757327049947,1.07047793,4333.6,4333.5,1.049]
[1757327050349,1.47467793,4333.6,4333.5,1.049]
[1757327050551,0.55237793,4333.6,4333.5,1.049]
[1757327050749,0.6563,4334.3,4334.2,0.2521]
[1757327050959,1.46572627,4334.3,4334.2,0.6781]
[1757327051851,1.46572627,4334.3,4334.2,0.426]
[1757327052050,1.46572627,4334.3,4334.1,0.426]
[1757327052246,1.46572627,4334.2,4334.1,0.426]
[1757327054257,1.46572627,4334.2,4334.1,0.6781]
[1757327060152,1.46572627,4334.2,4333.5,0.1621]
[1757327060460,0.5091,4333.7,4333.6,1.21047034]
[1757327060761,0.80452627,4333.7,4333.6,1.21047034]
[1757327064161,0.55242627,4333.7,4333.6,1.21047034]
[1757327064366,0.55242627,4334.2,4333.6,0.78447034]
[1757327064661,0.2521,4333.8,4333.7,0.78446348]
[1757327064856,0.2521,4333.8,4333.7,1.21046348]
[1757327065064,0.80452627,4333.8,4333.7,1.21046348]
[1757327065967,1.06152627,4333.8,4333.7,1.21046348]
[1757327066362,1.06152627,4333.8,4333.7,0.9265]
[1757327066755,0.55242627,4333.8,4333.7,1.21049065]
[1757327066956,0.5091,4334.7,4334.6,0.9265]
[1757327067558,0.2521,4334.7,4334.6,0.9265]
[1757327067763,0.4042,4335.4,4334.7,0.426]
[1757327068763,0.2521,4335.4,4335.3,0.9265]
[1757327069265,0.2521,4335.6,4335.5,0.1621]
[1757327069469,0.2521,4335.6,4335.5,0.6626]
[1757327069869,0.2521,4335.6,4335.5,1.0886]
[1757327070367,0.5091,4335.6,4335.5,1.0886]
[1757327070568,0.9133,4335.6,4335.5,1.0886]
[1757327073167,0.5091,4335.6,4335.5,1.0886]
[1757327073370,0.2521,4335.6,4335.5,1.0886]
[1757327073563,0.9133,4336.0,4335.9,0.2521]
[1757327073874,0.9133,4336.0,4335.9,0.6781]
[1757327074482,0.9133,4336.0,4335.9,0.426]
[1757327075681,0.9133,4336.0,4335.9,0.7012]
[1757327077587,0.5091,4336.0,4335.9,0.956]
[1757327078087,0.2521,4336.0,4335.9,0.956]
[1757327078383,0.5111,4336.4,4336.3,0.924]
[1757327078580,0.2781,4336.4,4336.3,0.924]
[1757327079183,0.6273,4337.1,4336.6,0.394]
[1757327079383,0.2781,4336.7,4336.6,0.924]
[1757327079688,0.82584233,4336.7,4336.6,0.924]
[1757327079890,1.09484233,4336.7,4336.6,0.924]
[1757327081289,0.5471,4336.7,4336.6,0.924]
[1757327082378,0.9414,4336.7,4336.6,0.394]
[1757327082783,0.9414,4336.7,4336.0,0.1599]
[1757327082784,1.4886852,4336.7,4336.1,0.394]
[1757327082983,0.9414,4336.2,4336.1,0.6692]
[1757327083285,0.9414,4336.2,4336.1,0.924]
[1757327083486,0.5471,4336.2,4336.1,0.924]
[1757327085586,0.9414,4336.2,4336.1,0.924]
[1757327086990,0.9414,4336.2,4336.1,0.93869862]
[1757327087787,0.9414,4336.2,4336.1,0.40869862]
[1757327087986,4.9414,4336.2,4336.1,0.01469862]
[1757327088289,5.71931327,4336.2,4336.1,0.01469862]
[1757327088490,5.71931327,4336.2,4335.3,0.394]
[1757327088690,0.2781,4335.4,4335.3,0.924]
[1757327088887,0.2781,4335.6,4335.5,0.1599]
[1757327089192,0.3796,4336.1,4335.5,0.6899]
[1757327089393,1.0946492,4336.0,4335.9,0.2752]
[1757327089597,1.0946492,4336.0,4335.9,0.6692]
[1757327089788,1.0946492,4336.0,4335.9,0.924]
[1757327089988,1.09464754,4336.0,4335.9,0.924]
[1757327090394,1.47424754,4336.0,4335.9,0.924]
[1757327090594,1.09464754,4336.0,4335.9,0.924]
[1757327091790,1.47424754,4336.0,4335.9,0.924]
[1757327092601,1.09464754,4336.0,4335.9,0.924]
[1757327093098,1.47424754,4336.0,4335.5,0.1599]
[1757327093296,0.9267,4335.6,4335.5,0.8291]
[1757327093495,0.5471,4335.6,4335.5,1.0839]
[1757327094495,0.9267,4335.6,4335.5,1.0839]
[1757327095300,1.47562286,4335.6,4335.5,1.0839]
[1757327095799,1.47562286,4335.6,4335.5,0.394]
[1757327097598,1.47620992,4335.6,4335.5,0.394]
[1757327098097,1.47620992,4335.6,4335.1,0.394]
[1757327098299,1.30735285,4336.0,4335.1,0.924]
[1757327098300,0.5471,4335.2,4335.1,0.924]
[1757327098599,1.09660992,4335.2,4335.1,0.924]
[1757327099509,1.47620992,4335.2,4335.1,0.394]
[1757327099999,1.47620992,4335.2,4335.1,0.6692]
[1757327100797,5.47620992,4335.2,4334.1,0.394]
[1757327101003,5.47620992,4335.2,4333.5,0.1599]
[1757327101004,0.2781,4333.7,4333.6,0.924]
[1757327101201,0.54950992,4333.7,4333.6,0.53]
[1757327101499,0.19,4334.5,4333.6,0.53]
[1757327101703,1.52164984,4334.8,4334.7,0.53]
[1757327101911,1.52164984,4334.8,4334.7,0.924]
[1757327101912,0.82730329,4334.8,4334.7,0.924]
[1757327102108,0.9267,4334.2,4334.1,0.394]
[1757327102402,1.47590329,4334.2,4334.1,0.6692]
[1757327104006,5.9396333,4334.2,4333.0,0.5539]
[1757327104209,1.79275313,4334.1,4333.0,0.6899]
[1757327104514,0.2781,4333.6,4333.5,0.6899]
[1757327104810,0.5111,4334.0,4333.9,0.924]
[1757327105808,0.5048,4334.4,4334.3,0.9243]
[1757327106006,0.2708,4334.4,4334.3,0.9243]
[1757327106412,0.5269,4334.4,4334.3,0.9243]
[1757327107008,0.5269,4334.2,4334.1,0.4145]
[1757327107314,0.5269,4334.2,4333.6,0.4145]
[1757327107315,1.42403192,4334.2,4333.6,0.4145]
[1757327107515,0.2708,4333.7,4333.6,0.9243]
[1757327107708,0.8922,4333.7,4333.6,0.6701]
[1757327108013,0.2708,4333.7,4333.6,0.9243]
[1757327108808,0.2708,4333.7,4333.6,0.6701]
[1757327108809,0.5269,4333.7,4333.6,0.6701]
[1757327109013,0.5269,4333.7,4333.6,0.9243]
[1757327110117,0.8922,4333.7,4333.6,0.9243]
[1757327110417,0.8922,4333.7,4333.6,0.6701]
[1757327110607,0.8922,4333.7,4333.6,0.4145]
[1757327110807,0.8922,4333.7,4333.1,0.4145]
[1757327111514,0.8922,4333.7,4333.0,0.1599]
[1757327111515,0.5269,4334.6,4334.5,0.6623]
[1757327111718,0.5269,4334.6,4334.0,0.1525]
[1757327111719,1.1272,4334.6,4334.0,0.1525]
[1757327112022,0.8922,4334.1,4334.0,0.8226]
[1757327112210,0.5269,4334.1,4334.0,1.0768]
[1757327113521,0.5269,4333.6,4333.5,0.6623]
[1757327114015,0.8922,4333.6,4333.5,0.8226]
[1757327115006,0.8922,4333.6,4333.1,0.4145]
[1757327115207,0.5269,4333.6,4333.1,0.4145]
[1757327115421,0.8922,4333.6,4333.1,0.4145]
[1757327115621,0.2708,4333.1,4333.0,0.6697]
[1757327115822,0.5269,4333.1,4333.0,0.6697]
[1757327116113,0.5269,4333.1,4333.0,1.0842]
[1757327116615,0.1152,4333.5,4333.1,0.4145]
[1757327116819,1.0074,4333.5,4333.4,0.6701]
[1757327117413,0.3653,4333.4,4333.0,0.1599]
[1757327117720,0.5269,4333.1,4333.0,0.6697]
[1757327118115,0.8922,4333.1,4333.0,0.83]
[1757327118419,0.8922,4333.1,4332.5,0.567]
[1757327118420,0.5269,4333.1,4332.5,0.567]
[1757327118607,0.3653,4333.0,4332.5,0.567]
[1757327118813,0.235,4333.3,4332.5,1.0768]
[1757327118814,0.5269,4332.6,4332.5,1.0768]
[1757327119720,0.8922,4332.6,4332.0,0.1525]
[1757327119907,0.5269,4332.6,4332.1,0.4145]
[1757327120113,0.8922,4332.6,4332.1,0.4145]
[1757327120409,0.8922,4332.6,4332.0,0.1525]
[1757327120410,0.2708,4332.6,4332.5,1.0768]
[1757327120614,0.5269,4332.6,4332.5,1.0768]
[1757327121015,0.8922,4332.6,4332.5,1.0768]
[1757327121819,0.8922,4332.6,4332.0,0.1525]
[1757327122017,0.3653,4332.5,4332.0,0.567]
[1757327122219,0.3653,4333.0,4332.0,0.6623]
[1757327122418,0.3653,4333.0,4332.1,0.4145]
[1757327124624,0.4554,4333.0,4332.1,0.4145]
[1757327125021,0.3653,4332.7,4332.1,0.9243]
[1757327125224,0.2657,4333.5,4332.5,0.6623]
[1757327125424,1.22358884,4333.4,4332.5,0.6623]
[1757327125613,0.5269,4332.7,4332.6,0.9243]
[1757327128625,0.4508,4333.4,4332.7,0.4145]
[1757327128820,1.05891012,4333.3,4333.2,0.9243]
[1757327129023,1.29391012,4333.3,4333.2,0.9243]
[1757327129522,1.64871012,4333.3,4333.2,0.6701]
[1757327130120,0.80281012,4333.3,4333.2,0.9243]
[1757327130521,0.3548,4333.2,4333.0,0.567]
[1757327130729,0.8817,4333.1,4333.0,0.4145]
[1757327131227,0.235,4333.4,4333.3,0.5098]
[1757327131421,0.5058,4333.4,4333.3,0.9243]
[1757327131626,0.1152,4333.5,4333.4,0.4145]
[1757327131928,0.1152,4333.5,4333.4,0.9243]
[1757327133427,0.386,4333.5,4333.4,0.9243]
[1757327134730,0.6421,4333.5,4333.4,0.9243]
[1757327135123,0.1152,4333.5,4333.4,0.9243]
[1757327135430,0.386,4333.5,4333.4,0.9243]
[1757327135825,0.6443,4333.5,4333.4,0.9243]
[1757327139439,0.1152,4333.5,4333.4,0.9243]
[1757327140937,0.8719,4332.4,4332.3,1.65260647]
[1757327141136,0.5218,4332.2,4332.1,0.6639]
[1757327141440,0.5218,4332.2,4332.1,0.9234]
[1757327141837,0.237,4332.4,4332.1,0.5267]
[1757327142028,0.5005,4332.4,4332.3,0.9234]
[1757327142227,1.03830707,4332.4,4332.3,0.9234]
[1757327142432,1.15360707,4332.4,4332.3,0.9234]
[1757327142836,0.65310707,4332.4,4332.3,0.9234]